Cogmind - Beta 15 @@@ ROGUE MODE // 2025.09.14 @ 21:41:42 Player: BLINGO GOVLIN Result: Destroyed by S-43 Plague with Heavy Machine Gun Performance ------------- Evolutions (9) 4500 Regions Visited (20) 4000 Robots Destroyed (75) 375 Value Destroyed (2147) 2147 Prototype IDs (25) 500 Alien Tech Used (2) 400 Bonus (646) 646 TOTAL SCORE: 12568 Bonus ------- High Alert Combat Kills 46 Met Imprinter 300 Met Zhirov 300 Cogmind --------- Core Integrity 0/1600 Matter 95/300 Energy 98/100 System Corruption 5% Temperature Cool (0) Movement Core (50) Location -1/Access Parts ------- > --- POWER (2) -------- (None) > --- PROPULSION (6) --- (None) > --- UTILITY (14) ----- Advanced Signal Interpreter Hacking Suite Advanced Hacking Suite System Shield > --- WEAPON (3) ------- (None) > --- INVENTORY (5) ---- Improved Signal Interpreter Advanced Terrain Scan Processor Advanced ECM Suite Peak State ------------ > --- POWER ------------ Light Particle Reactor > --- PROPULSION ------- Impulse Thruster Array Impulse Thruster Array Impulse Thruster Array > --- UTILITY ---------- Medium Storage Unit Long-range Sensor Array Improved Signal Interpreter Advanced Signal Interpreter Advanced Transmission Jammer Improved Utility Shielding Hacking Suite Hacking Suite Advanced Hacking Suite Advanced Hacking Suite System Shield System Shield System Shield > --- WEAPON ----------- Makeshift Sword Great Axe > --- INVENTORY -------- Light Particle Reactor Improved Cesium-ion Thruster Cooled Field Propulsion Drive Improved Signal Interpreter Advanced Terrain Scan Processor Advanced ECM Suite Rocket Array Micro-nuke Launcher [Rating: 121] Favorites ----------- Power Ion Engine Engine Ion Engine Power Core Fusion Compressor Reactor Light Particle Reactor Propulsion Light Treads Treads Light Treads Leg Aluminum Leg Flight Unit VTOL Module Utility Hacking Suite Device Seismic Detector Storage Medium Storage Unit Processor Improved Signal Interpreter Hackware Hacking Suite Protection Improved Propulsion Shielding Weapon Assault Rifle Energy Gun Small Laser Ballistic Gun Assault Rifle Launcher Rocket Array Slashing Weapon Great Axe Build | -11 -10 -9 -8 -7 -6 -6 -6 -6 -5 -5 -5 -5 -4 -4 -4 -4 -3 -3 -2 -1 ------- Run | Yrd Mat Mat Mat Fac Fac Low Low Zio Pro Fac Ext Cet Fac Upp Upp Zhi Pro Res Res Acc Slots Evolved 18 | . . 2 2 2 2 . . . . 2 . . 2 . . . . 2 2 2 Power 1 | . . . . . . . . . . . . . . . . . . 1 . . Propulsion 4 | . . 2 . 2 . . . . . . . . . . . . . . . . Utility 12 | . . . 2 . 2 . . . . 2 . . 2 . . . . 1 2 1 Weapon 1 | . . . . . . . . . . . . . . . . . . . . 1 Parts Attached 96 | 5 3 27 14 6 4 1 . 4 . 6 1 . 3 3 1 3 . 5 3 7 Power 13 | 1 . 3 2 1 . . . . . . . . 1 1 . 1 . . 1 2 Engine 6 | 1 . 3 1 1 . . . . . . . . . . . . . . . . Core 2 | . . . 1 . . . . . . . . . 1 . . . . . . . Reactor 5 | . . . . . . . . . . . . . . 1 . 1 . . 1 2 Propulsion 32 | 2 . 12 4 3 2 1 . 1 . 2 . . . . . . . 2 2 1 Treads 10 | 2 . 8 . . . . . . . . . . . . . . . . . . Leg 3 | . . 3 . . . . . . . . . . . . . . . . . . Wheel . | . . . . . . . . . . . . . . . . . . . . . Hover . | . . . . . . . . . . . . . . . . . . . . . Flight 19 | . . 1 4 3 2 1 . 1 . 2 . . . . . . . 2 2 1 Utility 31 | . 1 4 5 1 1 . . 3 . 3 1 . 2 2 . 2 . 3 . 3 Device 11 | . 1 . 2 . . . . 2 . . . . . 2 . 2 . 1 . 1 Storage 2 | . . 1 1 . . . . . . . . . . . . . . . . . Processor 3 | . . . . . 1 . . . . . . . 1 . . . . . . 1 Hackware 8 | . . . 2 . . . . . . 3 . . 1 . . . . 1 . 1 Protection 7 | . . 3 . 1 . . . 1 . . 1 . . . . . . 1 . . Artifact . | . . . . . . . . . . . . . . . . . . . . . Weapon 20 | 2 2 8 3 1 1 . . . . 1 . . . . 1 . . . . 1 Energy Gun 3 | . . 3 . . . . . . . . . . . . . . . . . . Energy Cannon . | . . . . . . . . . . . . . . . . . . . . . Ballistic Gun 10 | 2 2 5 1 . . . . . . . . . . . . . . . . . Ballistic Cannon . | . . . . . . . . . . . . . . . . . . . . . Launcher 4 | . . . 1 1 . . . . . 1 . . . . . . . . . 1 Special Weapon . | . . . . . . . . . . . . . . . . . . . . . Impact Weapon . | . . . . . . . . . . . . . . . . . . . . . Slashing Weapon 3 | . . . 1 . 1 . . . . . . . . . 1 . . . . . Piercing Weapon . | . . . . . . . . . . . . . . . . . . . . . Special Melee Weapon . | . . . . . . . . . . . . . . . . . . . . . Unidentified Prototypes 15 | . . 4 . 3 1 . . 1 . . . . . . . 3 . 2 . 1 Parts Lost 45 | . . 11 2 . . 2 . . . . 3 . 1 1 2 . . 4 . 19 Power 5 | . . 1 1 . . . . . . . 1 . . . . . . . . 2 Propulsion 17 | . . 5 1 . . 1 . . . . . . . 1 . . . 3 . 6 Utility 16 | . . 2 . . . 1 . . . . 2 . 1 . 2 . . 1 . 7 Weapon 7 | . . 3 . . . . . . . . . . . . . . . . . 4 Highest Loss Streak 14 | . . 2 1 . . 2 . . . . 2 . 1 1 2 . . 3 . 14 To Critical Strikes . | . . . . . . . . . . . . . . . . . . . . . Average Backups 8 | 1 4 10 8 9 9 9 9 9 10 9 9 9 7 5 4 6 7 8 9 6 Power . | . 1 1 . . . . . . . . . . . . . . 1 1 2 . Propulsion 2 | . 2 4 1 . 3 2 2 2 2 2 2 2 2 . . . . . . . Utility 3 | . . 2 3 4 4 6 6 6 7 7 6 6 4 3 3 3 3 3 3 3 Weapon 1 | . . 1 2 4 2 1 1 1 1 . . 1 1 1 1 2 2 2 3 2 Tool/Special . | . . . . . . . . . . . . . . . . . . . . . Unused Backups 11 | . 2 2 . 3 . . . . . 2 . . . . . . . . . 2 Power 2 | . 1 1 . . . . . . . . . . . . . . . . . . Propulsion 1 | . . . . . . . . . . 1 . . . . . . . . . . Utility 5 | . . . . 2 . . . . . 1 . . . . . . . . . 2 Weapon 3 | . 1 1 . 1 . . . . . . . . . . . . . . . . Tool/Special . | . . . . . . . . . . . . . . . . . . . . . Average Slot Usage (%) 82 | . 81 87 88 90 92 87 86 91 93 85 80 70 68 82 87 80 84 70 68 59 Engine 6 | . 14 10 6 7 6 6 6 6 6 5 4 . . . . . . . . . Treads 13 | . 28 32 . . . . . . . . . . . . . . . . . . Flight 15 | . . . 32 44 40 40 40 40 40 26 23 23 21 25 26 26 26 18 16 9 Device 4 | . 10 1 11 2 6 . . . . . . . . 5 9 7 10 7 4 6 Storage 5 | . . 9 9 7 6 6 6 6 6 5 5 5 5 5 5 5 5 4 4 3 Processor 2 | . . . . . 5 6 6 6 6 5 5 5 2 5 5 5 5 4 4 7 Hackware 11 | . . . 10 15 13 13 13 13 13 22 23 23 26 26 26 26 26 24 26 25 Protection 5 | . . 9 . 3 6 6 6 10 13 11 9 5 5 5 4 . . . 4 3 Energy Gun 1 | . . 6 . . . . . . . . . . . . . . . . . . Ballistic Gun 9 | . 28 15 10 . . . . . . . . . . . . . . . . . Slashing Weapon 2 | . . . 2 7 6 6 6 6 6 5 5 5 5 5 5 5 5 3 4 1 Peak Build Rating 121 | 5 6 18 29 40 48 47 46 54 51 80 80 67 74 77 76 81 78 89 103 121 Average Rating 38 | 3 5 11 25 33 45 45 46 49 51 71 73 67 71 72 74 72 78 82 89 87 On Entrance 52 | . 5 6 18 26 37 47 46 46 51 51 80 67 67 74 76 69 78 78 85 103 Naked Turns . | . . . . . . . . . . . . . . . . . . . . . Heaviest Build 37 | 7 10 37 37 25 28 28 27 32 29 36 36 16 21 35 35 33 29 31 32 35 Greatest Support 80 | 40 40 80 30 28 29 30 30 32 32 38 38 38 38 38 36 36 36 41 48 48 Greatest Overweight (x) 3 | 2 . 3 1 . . . . . . 1 . . . . . . . . . 2 Average Overweight (x) . | . . . . . . . . . . . . . . . . . . . . . Largest Inventory Capacity 15 | 5 5 15 15 10 10 10 10 10 10 10 10 10 10 10 10 10 10 10 10 10 Average Capacity 10 | 5 5 13 10 10 10 10 10 10 10 10 10 10 10 10 10 10 10 10 10 8 Most Carried 15 | 4 5 15 15 10 10 10 9 10 10 10 10 9 9 7 6 8 7 10 10 10 Average Carried 8 | 1 4 10 8 9 9 9 9 9 10 9 9 9 7 4 4 5 7 8 9 6 Final Capacity 15 | 5 5 15 10 10 10 10 10 10 10 10 10 10 10 10 10 10 10 10 10 5 Final Carried 15 | 2 5 15 10 10 10 9 9 10 10 9 9 9 7 4 5 7 7 8 10 3 Class Distribution -------------------- 37% | Hacker-Sprinter 30% | Mutant 16% | Scavenger-Mutant 5% | Wizard-Mutant 3% | Sprinter 3% | Wizard-Sprinter 3% | Hacker-Mutant Dominant Class ---------------- Mutant | -10/Materials Scavenger-Mutant | -9/Materials Sprinter | -8/Materials Hacker-Sprinter | -7/Factory Hacker-Sprinter | -6/Factory Hacker-Sprinter | -6/Lower Caves Hacker-Sprinter | -6/Lower Caves Hacker-Sprinter | -6/Zion Hacker-Sprinter | -5/Proximity Caves Hacker-Sprinter | -5/Factory Hacker-Sprinter | -5/Extension Hacker-Sprinter | -5/Cetus Hacker-Sprinter | -4/Factory Hacker-Sprinter | -4/Upper Caves Hacker-Sprinter | -4/Upper Caves Hacker-Sprinter | -4/Zhirov Hacker-Sprinter | -3/Proximity Caves Hacker-Sprinter | -3/Research Wizard-Sprinter | -2/Research Wizard-Mutant | -1/Access Resources | -11 -10 -9 -8 -7 -6 -6 -6 -6 -5 -5 -5 -5 -4 -4 -4 -4 -3 -3 -2 -1 ----------- Run | Yrd Mat Mat Mat Fac Fac Low Low Zio Pro Fac Ext Cet Fac Upp Upp Zhi Pro Res Res Acc Matter Collected 2143 | 172 192 741 411 . 49 65 16 50 . 50 100 . 50 54 114 . 50 . 29 . Remotely . | . . . . . . . . . . . . . . . . . . . . . Salvage Created 2478 | . 175 1366 444 . 49 . . . . 255 74 . 50 . . . . 19 46 . Parts 156 | . 19 77 25 . 3 . . . . 23 4 . 1 . . . . . 4 . Haulers Intercepted 3 | . . 1 2 . . . . . . . . . . . . . . . . . Recyclers Shooed 2 | . . 2 . . . . . . . . . . . . . . . . . . Parts Field Recycled . | . . . . . . . . . . . . . . . . . . . . . Retrieved Matter . | . . . . . . . . . . . . . . . . . . . . . Parts Self-Destructed 3 | . . . . . . . . . . . . . . . . . 3 . . . Prevented 1 | . . . . . . 1 . . . . . . . . . . . . . . Kills | -11 -10 -9 -8 -7 -6 -6 -6 -6 -5 -5 -5 -5 -4 -4 -4 -4 -3 -3 -2 -1 ------- Run | Yrd Mat Mat Mat Fac Fac Low Low Zio Pro Fac Ext Cet Fac Upp Upp Zhi Pro Res Res Acc Combat Hostiles Destroyed 57 | . 8 30 11 . . . . . . 8 . . . . . . . . . . Guns 49 | . 8 30 11 . . . . . . . . . . . . . . . . . AOE 8 | . . . . . . . . . . 8 . . . . . . . . . . Classes Destroyed 10 | . 2 5 . . . . . . . 2 . . . . . . . . 1 . Worker 2 | . . . . . . . . . . 1 . . . . . . . 1 . . Builder 2 | . . . . . . . . . . 2 . . . . . . . . . . Tunneler 1 | . . . . . . . . . . . . . . . . . . . 1 . Hauler 3 | . . 1 2 . . . . . . . . . . . . . . . . . Operator 5 | . . 2 . . 2 . . . . . . . . . . . . . 1 . Watcher 5 | . . 1 . . . . . . . 1 2 . 1 . . . . . . . Swarmer 19 | . 5 3 6 . . . . . . 5 . . . . . . . . . . Grunt 29 | . 3 20 3 . . . . . . 3 . . . . . . . . . . Brawler 1 | . . 1 . . . . . . . . . . . . . . . . . . Sentry 8 | . . 6 2 . . . . . . . . . . . . . . . . . Best Kill Streak 12 | . 3 3 7 . 2 . . . . 12 1 . 1 . . . . 1 1 . Combat Bots Only 8 | . 3 3 7 . . . . . . 8 . . . . . . . . . . Max Kills in Single Turn 3 | . 2 1 1 . 1 . . . . 3 1 . 1 . . . . 1 1 . Gunslinging 1 | . 1 . . . . . . . . . . . . . . . . . . . Exploded 3 | . . . . . . . . . . 3 . . . . . . . . . . Melee . | . . . . . . . . . . . . . . . . . . . . . Uniques/NPCs Destroyed . | . . . . . . . . . . . . . . . . . . . . . Combat | -11 -10 -9 -8 -7 -6 -6 -6 -6 -5 -5 -5 -5 -4 -4 -4 -4 -3 -3 -2 -1 -------- Run | Yrd Mat Mat Mat Fac Fac Low Low Zio Pro Fac Ext Cet Fac Upp Upp Zhi Pro Res Res Acc Hostile Shots Fired 677 | . 33 188 45 30 . 9 . . 3 26 50 . 6 14 11 . 2 64 5 191 Missed 280 | . 10 40 15 17 . 4 . . 2 17 25 . 4 10 5 . 1 39 2 89 Hits 397 | . 23 148 30 13 . 5 . . 1 9 25 . 2 4 6 . 1 25 3 102 Melee 3 | . . 2 . . . . . . . . . . . . . . . 1 . . Projectile 394 | . 23 146 30 13 . 5 . . 1 9 25 . 2 4 6 . 1 24 3 102 Critical Strikes 10 | . . 4 . . . . . . . . 1 . . . 1 . . 2 . 2 Part Disruptions 1 | . . . . . . . . . . . . . . . . . . . . 1 Damage Taken 7455 | . 197 1851 408 110 . 109 . . 17 242 621 . 132 105 112 . 26 539 138 2848 Core 2420 | . 15 204 71 12 . 28 . . . 102 169 . . . 26 . . 189 . 1604 Absorbed by Shields . | . . . . . . . . . . . . . . . . . . . . . Redirected to Shielding 492 | . . . . 33 . 39 . . 11 43 162 . 44 53 10 . . . . 97 Regen/Repaired (Parts) 155 | . . . . . . . . 155 . . . . . . . . . . . . Core Remaining (%) 87 | 100 94 49 87 98 . . . . 96 . . 72 . . . . 97 80 100 . Volleys Fired 187 | . 18 130 31 . . . . . . 3 . . . . . . . . . 5 Largest 2 | . 2 2 2 . . . . . . 1 . . . . . . . . . 1 Hottest 79 | . 40 79 46 . . . . . . 45 . . . . . . . . . 49 Shots Fired 362 | . 36 257 62 . . . . . . 3 . . . . . . . . . 4 Gun 355 | . 36 257 62 . . . . . . . . . . . . . . . . . Cannon . | . . . . . . . . . . . . . . . . . . . . . Launcher 7 | . . . . . . . . . . 3 . . . . . . . . . 4 Special . | . . . . . . . . . . . . . . . . . . . . . Kinetic 271 | . 36 173 62 . . . . . . . . . . . . . . . . . Thermal 84 | . . 84 . . . . . . . . . . . . . . . . . . Explosive 7 | . . . . . . . . . . 3 . . . . . . . . . 4 Electromagnetic . | . . . . . . . . . . . . . . . . . . . . . Robot Hit Streak 29 | . 4 29 16 . . . . . . 9 . . . . . . . . . . Robot Miss Streak 4 | . 4 3 2 . . . . . . 2 . . . . . . . . . 2 Penetration Max . | . . . . . . . . . . . . . . . . . . . . . Secondary Targets 5 | . 1 1 3 . . . . . . . . . . . . . . . . . Max Gunslinging Chain 1 | . 1 1 1 . . . . . . . . . . . . . . . . . Shots Hit Robots 280 | . 17 199 52 . 3 . . . . 3 2 . 1 . . . . 1 2 . Core Hits 143 | . 12 62 21 . . . . . . 40 2 . 1 . . . . . 1 4 Critical Kills 1 | . . . 1 . . . . . . . . . . . . . . . . . Critical Parts Destroyed 3 | . . 2 1 . . . . . . . . . . . . . . . . . Critical Strikes 6 | . . 4 2 . . . . . . . . . . . . . . . . . Burn 2 | . . 2 . . . . . . . . . . . . . . . . . . Destroy 4 | . . 2 2 . . . . . . . . . . . . . . . . . Melee Attacks 39 | . . . 2 1 3 . . . . 9 9 . 1 . . . . 4 8 2 Impact . | . . . . . . . . . . . . . . . . . . . . . Slashing 39 | . . . 2 1 3 . . . . 9 9 . 1 . . . . 4 8 2 Piercing . | . . . . . . . . . . . . . . . . . . . . . Sneak Attacks 7 | . . . 2 . 1 . . . . . 1 . . . . . . 1 2 . Combat Hostiles . | . . . . . . . . . . . . . . . . . . . . . Follow-up Attacks . | . . . . . . . . . . . . . . . . . . . . . Damage Inflicted 5559 | . 200 2596 895 . 258 . . . . 1013 145 . 53 . . . . 75 199 125 Guns 3553 | . 200 2594 759 . . . . . . . . . . . . . . . . . Cannons . | . . . . . . . . . . . . . . . . . . . . . Explosions 1138 | . . . . . . . . . . 1013 . . . . . . . . . 125 Melee 866 | . . . 136 . 258 . . . . . 145 . 53 . . . . 75 199 . Ramming 2 | . . 2 . . . . . . . . . . . . . . . . . . Kinetic 2710 | . 200 1751 759 . . . . . . . . . . . . . . . . . Thermal 843 | . . 843 . . . . . . . . . . . . . . . . . . Explosive 983 | . . . . . . . . . . 858 . . . . . . . . . 125 Electromagnetic 155 | . . . . . . . . . . 155 . . . . . . . . . . Impact . | . . . . . . . . . . . . . . . . . . . . . Slashing 866 | . . . 136 . 258 . . . . . 145 . 53 . . . . 75 199 . Piercing . | . . . . . . . . . . . . . . . . . . . . . Highest Corruption 5 | . . . . . . . . . . . 2 2 . . . . . . . 5 Average Corruption 2 | . . . . . . . . . . . 2 2 . . . . . . . 2 Corruption Purged . | . . . . . . . . . . . . . . . . . . . . . Corruption Blocked . | . . . . . . . . . . . . . . . . . . . . . Effects 4 | . . . . . . . . . . . 2 . . . . . . . . 2 Message Errors 2 | . . . . . . . . . . . 1 . . . . . . . . 1 Matter Fused 1 | . . . . . . . . . . . 1 . . . . . . . . . Weapon Failures 1 | . . . . . . . . . . . . . . . . . . . . 1 Overload Shots . | . . . . . . . . . . . . . . . . . . . . . Overflow Damage 256 | . . . . . 153 . . . . 15 . . . . . . . 35 53 . Projectiles . | . . . . . . . . . . . . . . . . . . . . . Explosions 15 | . . . . . . . . . . 15 . . . . . . . . . . Melee 241 | . . . . . 153 . . . . . . . . . . . . 35 53 . Knockbacks . | . . . . . . . . . . . . . . . . . . . . . Impact . | . . . . . . . . . . . . . . . . . . . . . Kinetic . | . . . . . . . . . . . . . . . . . . . . . Secondary . | . . . . . . . . . . . . . . . . . . . . . Self-Inflicted Damage 254 | . . . . . . . . . . 65 . . . . . . . . . 189 Shots 8 | . . . . . . . . . . 3 . . . . . . . . . 5 Rammed 2 | . . 2 . . . . . . . . . . . . . . . . . . Targets Rammed 2 | . . 2 . . . . . . . . . . . . . . . . . . Kicked . | . . . . . . . . . . . . . . . . . . . . . Crushed . | . . . . . . . . . . . . . . . . . . . . . Highest Temperature 379 | . 6 379 6 66 27 6 2 2 . . 5 . . . . . . 2 . . Average Temperature 50 | . 6 65 4 25 9 4 2 2 . . 5 . . . . . . 2 . . Received Heat Transfer 1450 | . 36 918 153 36 . 18 . . . 36 126 . 9 . 9 . . 46 9 54 Effects 2 | . . 2 . . . . . . . . . . . . . . . . . . Energy Bleed 1 | . . 1 . . . . . . . . . . . . . . . . . . Damage (minor) 1 | . . 1 . . . . . . . . . . . . . . . . . . Siege Activations . | . . . . . . . . . . . . . . . . . . . . . Martial Activations . | . . . . . . . . . . . . . . . . . . . . . Shielding Activations . | . . . . . . . . . . . . . . . . . . . . . Robots Disrupted 1 | . . . . . . . . . . 1 . . . . . . . . . . Combat Hostiles . | . . . . . . . . . . . . . . . . . . . . . Robots Corrupted . | . . . . . . . . . . . . . . . . . . . . . Combat Hostiles . | . . . . . . . . . . . . . . . . . . . . . Parts Fried 1 | . . . . . . . . . . . . . 1 . . . . . . . Impact Corruptions . | . . . . . . . . . . . . . . . . . . . . . Robots Melted . | . . . . . . . . . . . . . . . . . . . . . Combat Hostiles . | . . . . . . . . . . . . . . . . . . . . . Parts Melted 3 | . . 3 . . . . . . . . . . . . . . . . . . Heat Transferred 2137 | . . 2137 . . . . . . . . . . . . . . . . . . Parts Sabotaged . | . . . . . . . . . . . . . . . . . . . . . Parts Stolen . | . . . . . . . . . . . . . . . . . . . . . Parts Stripped . | . . . . . . . . . . . . . . . . . . . . . Power Chain Reactions 1 | . . . . . . . . . . 1 . . . . . . . . . . Alert | -11 -10 -9 -8 -7 -6 -6 -6 -6 -5 -5 -5 -5 -4 -4 -4 -4 -3 -3 -2 -1 ------- Run | Yrd Mat Mat Mat Fac Fac Low Low Zio Pro Fac Ext Cet Fac Upp Upp Zhi Pro Res Res Acc Maximum Alert Level 2 | . . 1 1 . . . . . . 2 1 . . . . . . 1 . 1 Low Security (%) 87 | 100 100 97 84 100 100 . . . . 38 77 100 100 . . . . . 100 92 Level 1 9 | . . 2 15 . . . . . . 11 22 . . . . . . 100 . 7 Level 2 2 | . . . . . . . . . . 50 . . . . . . . . . . Level 3 . | . . . . . . . . . . . . . . . . . . . . . Level 4 . | . . . . . . . . . . . . . . . . . . . . . Level 5 . | . . . . . . . . . . . . . . . . . . . . . High Security . | . . . . . . . . . . . . . . . . . . . . . Max Security . | . . . . . . . . . . . . . . . . . . . . . Peak Influence 595 | . 76 207 218 35 17 . . . . 595 296 67 37 . . . . 344 187 229 Initial 475 | . . 17 36 . 11 . . . . 475 291 67 37 . . . . 300 162 95 Average 90 | . 15 88 95 14 4 . . . . 343 100 67 1 . . . . 306 158 64 Influence Increases 4329 | . 211 828 361 72 57 135 . . 60 1140 360 . 22 . . . . 429 87 567 Destroy 0b10 Robot/C 1140 | . 160 600 220 . . . . . . 160 . . . . . . . . . . Destroy 0b10 Robot/NC 90 | . . 20 10 . 10 . . . . 20 10 . 5 . . . . 5 10 . Destroy Leader 266 | . 30 154 54 . . . . . . 22 4 . 2 . . . . . . . Successful Hack 149 | . 6 2 15 26 32 . . . . 10 17 . . . . . . . 14 27 Disable Machine 105 | . . . 15 . . . . . . 75 . . . . . . . . . 15 Destroy Structure 254 | . . 7 2 1 . . . . . 88 14 . . . . . . 4 18 120 Advance Influence 750 | . . . . . . . . . . 450 . . . . . . . 300 . . Partial Spotted 135 | . . . 15 . 15 . . . . 30 30 . 15 . . . . . 30 . Lose Combat Pursuer 1440 | . 15 45 30 45 . 135 . . 60 285 285 . . . . . . 120 15 405 Influence Decreases 4212 | . 169 783 448 49 80 10 35 90 20 585 835 53 74 15 . . . 140 217 609 Entered New Map 802 | . . 25 51 . 12 . 25 90 . 15 304 53 30 6 . . . . 127 64 Time Decay 1672 | . 169 492 170 49 68 10 10 . 20 120 179 . 7 . . . . 100 90 188 Lost Part 347 | . . 110 20 . . . . . . . 30 . . 9 . . . 40 . 138 Lost Ally 50 | . . . 10 . . . . . . . 40 . . . . . . . . . Purge Threat 1341 | . . 156 197 . . . . . . 450 282 . 37 . . . . . . 219 Squads Dispatched 27 | . 4 3 1 1 1 . . . . 2 . . 1 . 1 . . 3 1 9 Investigation 8 | . 1 1 . 1 1 . . . . . . . . . . . . 1 . 3 Extermination 7 | . . . . . . . . . . 1 . . 1 . . . . 1 . 4 Reinforcement 10 | . 3 2 1 . . . . . . . . . . . . . . 1 1 2 Assault 1 | . . . . . . . . . . . . . . . 1 . . . . . Garrison 1 | . . . . . . . . . . 1 . . . . . . . . . . Intercept . | . . . . . . . . . . . . . . . . . . . . . Searches Triggered . | . . . . . . . . . . . . . . . . . . . . . Construction Impeded . | . . . . . . . . . . . . . . . . . . . . . Haulers Reinforced . | . . . . . . . . . . . . . . . . . . . . . Active Scanning Responses . | . . . . . . . . . . . . . . . . . . . . . Cargo Convoy Interrupts . | . . . . . . . . . . . . . . . . . . . . . Stealth | -11 -10 -9 -8 -7 -6 -6 -6 -6 -5 -5 -5 -5 -4 -4 -4 -4 -3 -3 -2 -1 --------- Run | Yrd Mat Mat Mat Fac Fac Low Low Zio Pro Fac Ext Cet Fac Upp Upp Zhi Pro Res Res Acc Distress Signals 18 | . 3 4 3 . . . . . . 1 2 1 1 . . . . 2 . 1 Communications Jammed 2 | . . . . . . . . . . . . . . . . . . . . 2 Distress Signals 2 | . . . . . . . . . . . . . . . . . . . . 2 Times Spotted 259 | . 13 49 19 8 1 14 . . 8 36 22 4 7 1 8 . 3 23 5 38 Peak Tracking Total 20 | . 5 4 6 6 1 14 . . 4 20 10 5 7 1 9 . 3 9 5 15 Tactical Retreats 41 | . 1 2 1 2 . 2 . . 1 8 6 . . 1 2 . . 4 1 10 Traps | -11 -10 -9 -8 -7 -6 -6 -6 -6 -5 -5 -5 -5 -4 -4 -4 -4 -3 -3 -2 -1 ------- Run | Yrd Mat Mat Mat Fac Fac Low Low Zio Pro Fac Ext Cet Fac Upp Upp Zhi Pro Res Res Acc Traps Triggered 11 | . 1 1 . . . . . . . . 6 . 1 . . . . . . 2 Indirectly . | . . . . . . . . . . . . . . . . . . . . . Trap Hack Attempts . | . . . . . . . . . . . . . . . . . . . . . Triggered . | . . . . . . . . . . . . . . . . . . . . . Disarmed . | . . . . . . . . . . . . . . . . . . . . . Reprogrammed . | . . . . . . . . . . . . . . . . . . . . . Reused . | . . . . . . . . . . . . . . . . . . . . . Traps Extracted . | . . . . . . . . . . . . . . . . . . . . . Installed . | . . . . . . . . . . . . . . . . . . . . . Triggered . | . . . . . . . . . . . . . . . . . . . . . Machines | -11 -10 -9 -8 -7 -6 -6 -6 -6 -5 -5 -5 -5 -4 -4 -4 -4 -3 -3 -2 -1 ---------- Run | Yrd Mat Mat Mat Fac Fac Low Low Zio Pro Fac Ext Cet Fac Upp Upp Zhi Pro Res Res Acc Machines Disabled 7 | . . . 1 . . . . . . 5 . . . . . . . . . 1 Max in Single Turn 5 | . . . 1 . . . . . . 5 . . . . . . . . . 1 Garrison Access 3 | . . . . 1 1 . . . . . . . . . . . . . . 1 Machines Repaired . | . . . . . . . . . . . . . . . . . . . . . Machines Dismantled . | . . . . . . . . . . . . . . . . . . . . . Machines Sabotaged . | . . . . . . . . . . . . . . . . . . . . . Overloaded Fab Kills . | . . . . . . . . . . . . . . . . . . . . . Hacking | -11 -10 -9 -8 -7 -6 -6 -6 -6 -5 -5 -5 -5 -4 -4 -4 -4 -3 -3 -2 -1 --------- Run | Yrd Mat Mat Mat Fac Fac Low Low Zio Pro Fac Ext Cet Fac Upp Upp Zhi Pro Res Res Acc Machines Accessed 55 | . 2 9 7 3 4 . . . . 4 11 . 1 . . 5 . 2 1 6 Terminals 38 | . 2 7 7 . 1 . . . . 3 11 . 1 . . . . . 1 5 Fabricators 3 | . . . . 1 1 . . . . . . . . . . . . 1 . . Repair Stations 1 | . . . . . 1 . . . . . . . . . . . . . . . Recycling Units . | . . . . . . . . . . . . . . . . . . . . . Scanalyzers 4 | . . 2 . 1 . . . . . 1 . . . . . . . . . . Garrison Access 4 | . . . . 1 1 . . . . . . . . . . . . 1 . 1 Total Hacks 158 | . 8 23 21 6 8 . . . . 20 22 . 7 . . 18 . 6 2 17 Successful 91 | . 2 10 11 5 7 . . . . 14 11 . 5 . . 18 . 2 2 4 Failed 67 | . 6 13 10 1 1 . . . . 6 11 . 2 . . . . 4 . 13 Catastrophic 15 | . 3 4 2 . . . . . . 2 . . . . . . . 1 . 3 Database Lockouts . | . . . . . . . . . . . . . . . . . . . . . Manual 52 | . 4 15 14 . 1 . . . . 8 1 . 3 . . . . . 1 5 Terminals 102 | . 8 17 21 . 2 . . . . 10 22 . 7 . . . . . 2 13 Fabricators 9 | . . . . 2 3 . . . . . . . . . . . . 4 . . Repair Stations 2 | . . . . . 2 . . . . . . . . . . . . . . . Recycling Units . | . . . . . . . . . . . . . . . . . . . . . Scanalyzers 18 | . . 6 . 2 . . . . . 10 . . . . . . . . . . Garrison Access 9 | . . . . 2 1 . . . . . . . . . . . . 2 . 4 Terminal Hacks 57 | . 1 3 9 . 1 . . . . 4 11 . 5 . . 18 . . 2 3 Record 6 | . . . . . . . . . . . . . . . . 6 . . . . Part Schematic 6 | . . . 2 . . . . . . . . . . . . 4 . . . . Robot Analysis 4 | . . . . . . . . . . . . . . . . 4 . . . . Prototype ID Bank 5 | . . . 1 . . . . . . . . . . . . 4 . . . . Open Door 5 | . . . . . . . . . . . 5 . . . . . . . . . Level Access Points 3 | . . . . . . . . . . 1 . . . . . . . . 1 1 Branch Access Points 2 | . . . . . . . . . . . 1 . . . . . . . 1 . Terminal Index 2 | . . 1 1 . . . . . . . . . . . . . . . . . Unreport Threat 14 | . . 2 3 . . . . . . 3 2 . 2 . . . . . . 2 Hauler Manifests 2 | . 1 . . . . . . . . . . . 1 . . . . . . . Registered Components 3 | . . . 1 . 1 . . . . . . . 1 . . . . . . . Zone Layout 5 | . . . 1 . . . . . . . 3 . 1 . . . . . . . Fabricator Hacks 7 | . . . . 2 3 . . . . . . . . . . . . 2 . . Load Schematic 4 | . . . . 1 2 . . . . . . . . . . . . 1 . . Build 3 | . . . . 1 1 . . . . . . . . . . . . 1 . . Repair Station Hacks 1 | . . . . . 1 . . . . . . . . . . . . . . . Scan Component 1 | . . . . . 1 . . . . . . . . . . . . . . . Recycling Unit Hacks . | . . . . . . . . . . . . . . . . . . . . . Scanalyzer 18 | . . 6 . 2 . . . . . 10 . . . . . . . . . . Insert Component 9 | . . 3 . 1 . . . . . 5 . . . . . . . . . . Analyze 9 | . . 3 . 1 . . . . . 5 . . . . . . . . . . Garrison Access Hacks 3 | . . . . 1 1 . . . . . . . . . . . . . . 1 Seal Access 3 | . . . . 1 1 . . . . . . . . . . . . . . 1 Unauthorized Hacks 5 | . 1 1 2 . 1 . . . . . . . . . . . . . . . Terminals 5 | . 1 1 2 . 1 . . . . . . . . . . . . . . . Assimilate 2 | . . . 1 . 1 . . . . . . . . . . . . . . . Operators 3 | . 1 1 1 . . . . . . . . . . . . . . . . . Fabricators . | . . . . . . . . . . . . . . . . . . . . . Repair Stations . | . . . . . . . . . . . . . . . . . . . . . Recycling Units . | . . . . . . . . . . . . . . . . . . . . . Scanalyzers . | . . . . . . . . . . . . . . . . . . . . . Garrison Access . | . . . . . . . . . . . . . . . . . . . . . Data Cores Recovered 3 | . . . . . 2 . . . . . . . . . . . . . 1 . Used 1 | . . . . . 1 . . . . . . . . . . . . . . . Hacking Detections 38 | . 2 7 5 2 3 . . . . 3 7 . . . . . . 2 1 6 Full Trace Events 8 | . 1 1 . 1 1 . . . . . . . . . . . . 1 . 3 Feedback Events 1 | . . . . . . . . . . . . . . . . . . . . 1 Corruption 1 | . . . . . . . . . . . . . . . . . . . . 1 Feedback Blocked 1 | . . . . . . . . . . . . . . . . . . . . 1 Robot Schematics Acquired . | . . . . . . . . . . . . . . . . . . . . . Robots Built . | . . . . . . . . . . . . . . . . . . . . . Authchips . | . . . . . . . . . . . . . . . . . . . . . Time . | . . . . . . . . . . . . . . . . . . . . . Total Robot Build Rating . | . . . . . . . . . . . . . . . . . . . . . Part Schematics Acquired 12 | . . 2 2 . . . . . . 4 . . . . . 4 . . . . Parts Built 5 | . . . . 2 1 . . . . . . . . . . . . 2 . . Authchips . | . . . . . . . . . . . . . . . . . . . . . Time 84 | . . . . 24 36 . . . . . . . . . . . . 24 . . Total Part Build Rating 15 | . . . . 6 3 . . . . . . . . . . . . 6 . . Parts Repaired . | . . . . . . . . . . . . . . . . . . . . . Time . | . . . . . . . . . . . . . . . . . . . . . Parts Recycled . | . . . . . . . . . . . . . . . . . . . . . Recycled Matter . | . . . . . . . . . . . . . . . . . . . . . Retrieved Matter . | . . . . . . . . . . . . . . . . . . . . . Retrieved Components . | . . . . . . . . . . . . . . . . . . . . . Parts Scanalyzed 7 | . . 3 . . . . . . . 4 . . . . . . . . . . Part Schematics Acquired 6 | . . 2 . . . . . . . 4 . . . . . . . . . . Parts Damaged . | . . . . . . . . . . . . . . . . . . . . . Bothacking | -11 -10 -9 -8 -7 -6 -6 -6 -6 -5 -5 -5 -5 -4 -4 -4 -4 -3 -3 -2 -1 ------------ Run | Yrd Mat Mat Mat Fac Fac Low Low Zio Pro Fac Ext Cet Fac Upp Upp Zhi Pro Res Res Acc Used RIF Installer . | . . . . . . . . . . . . . . . . . . . . . Robots Hacked . | . . . . . . . . . . . . . . . . . . . . . Non-combat . | . . . . . . . . . . . . . . . . . . . . . Combat . | . . . . . . . . . . . . . . . . . . . . . Robot Hacks Applied . | . . . . . . . . . . . . . . . . . . . . . Relay Couplers Released . | . . . . . . . . . . . . . . . . . . . . . Fabnet Peak Effective % . | . . . . . . . . . . . . . . . . . . . . . Robots Rewired . | . . . . . . . . . . . . . . . . . . . . . Allies Hacked . | . . . . . . . . . . . . . . . . . . . . . Hacks Repelled . | . . . . . . . . . . . . . . . . . . . . . Allies | -11 -10 -9 -8 -7 -6 -6 -6 -6 -5 -5 -5 -5 -4 -4 -4 -4 -3 -3 -2 -1 -------- Run | Yrd Mat Mat Mat Fac Fac Low Low Zio Pro Fac Ext Cet Fac Upp Upp Zhi Pro Res Res Acc Total Allies 5 | . . . 1 . . . . . . . 4 . . . . . . . . . Largest Group 2 | . . . 1 . . . . . . . 2 . . . . . . . . . Highest-Rated Group 51 | . . . 26 . . . . . . . 51 . . . . . . . . . Highest-Rated Ally 31 | . . . 26 . . . . . . . 31 . . . . . . . . . Total Orders . | . . . . . . . . . . . . . . . . . . . . . Ally Attacks 18 | . . . . . . . . . . . 18 . . . . . . . . . Total Damage 233 | . . . . . . . . . . . 233 . . . . . . . . . Kills . | . . . . . . . . . . . . . . . . . . . . . Allies Corrupted 1 | . . . . . . . . . . . 1 . . . . . . . . . Allies Melted . | . . . . . . . . . . . . . . . . . . . . . Intel | -11 -10 -9 -8 -7 -6 -6 -6 -6 -5 -5 -5 -5 -4 -4 -4 -4 -3 -3 -2 -1 ------- Run | Yrd Mat Mat Mat Fac Fac Low Low Zio Pro Fac Ext Cet Fac Upp Upp Zhi Pro Res Res Acc Active Infowar (turns) 2398 | . 681 268 188 46 261 1 . . . . . . . 25 106 53 54 194 186 335 Sensors 1163 | . . . 188 46 261 1 . . . . . . . . . . . 146 186 335 Seismic 949 | . 681 268 . . . . . . . . . . . . . . . . . . Jamming 295 | . . . . . . . . . . . . . . . . . . . . 295 ECM 286 | . . . . . . . . . . . . . . 25 106 53 54 48 . . Robot Analysis Total 4 | . . . . . . . . . . . . . . . . 4 . . . . Derelict Logs Recovered 6 | . . . . . . 1 . 1 1 . . . . 1 2 . . . . . Drone Launches . | . . . . . . . . . . . . . . . . . . . . . Drone Recoveries . | . . . . . . . . . . . . . . . . . . . . . Exploration | -11 -10 -9 -8 -7 -6 -6 -6 -6 -5 -5 -5 -5 -4 -4 -4 -4 -3 -3 -2 -1 ------------- Run | Yrd Mat Mat Mat Fac Fac Low Low Zio Pro Fac Ext Cet Fac Upp Upp Zhi Pro Res Res Acc Turns Passed 5732 | 70 875 1681 354 122 261 58 35 267 89 247 445 16 91 90 106 53 54 218 186 414 Spaces Moved 9123 | 44 385 664 331 311 381 277 174 1158 423 752 1008 54 228 258 399 157 207 624 308 980 Core 164 | 19 . . . . . . . . . . . . . . . . . . . 145 Treads 1025 | 25 385 615 . . . . . . . . . . . . . . . . . . Legs 55 | . . 49 6 . . . . . . . . . . . . . . . . . Wheels . | . . . . . . . . . . . . . . . . . . . . . Hover . | . . . . . . . . . . . . . . . . . . . . . Flight 7879 | . . . 325 311 381 277 174 1158 423 752 1008 54 228 258 399 157 207 624 308 835 Fastest Speed 20 | 50 160 160 27 21 21 20 20 20 21 21 29 29 29 26 26 26 26 26 29 24 Average Speed 43 | 135 160 162 38 21 21 20 20 20 21 26 29 29 29 26 26 26 26 29 30 38 Slowest Speed 330 | 160 160 330 190 25 21 21 20 21 21 100 29 29 29 32 26 26 26 35 39 150 Overloaded Moves . | . . . . . . . . . . . . . . . . . . . . . Propulsion Burnouts . | . . . . . . . . . . . . . . . . . . . . . Robots Hopped 19 | . . . 1 . . . . . . . 16 . . . . . . . 1 1 Potential Cave-ins 4 | . . . . . . . . . . 2 . . . . . . . . . 2 Cave-ins Triggered . | . . . . . . . . . . . . . . . . . . . . . Teleports 1 | . . . . . . . . . . . . . . . . . . 1 . . Exploration Rate (%) 39 | 3 63 52 35 15 7 55 44 87 59 22 82 23 10 60 54 60 39 18 9 32 Regions Visited 20 Branch Regions 10 Pre-discovered Areas 4 | . . . . . . . . . . . . . . . 1 3 . . . . Known Exits Taken 15 | . . . . . 1 1 1 1 1 1 1 1 1 1 1 1 1 1 1 . Unknown Exits Taken 5 | 1 1 1 1 1 . . . . . . . . . . . . . . . . Scrap Searched 16 | . . . . . . 3 1 2 2 . . . . 1 5 . 2 . . . Spaces Dug 81 | . . . . 1 . . . . . 9 7 . . . . . . 2 6 56 Terrain Destroyed 135 | . . . . 1 . . . . . 52 7 . . . . . . 2 6 67 Melee 26 | . . . . 1 . . . . . 9 7 . . . . . . 2 6 1 Projectile . | . . . . . . . . . . . . . . . . . . . . . AOE 109 | . . . . . . . . . . 43 . . . . . . . . . 66 Terrain Rammed . | . . . . . . . . . . . . . . . . . . . . . Walls Destroyed . | . . . . . . . . . . . . . . . . . . . . . Machines Disabled . | . . . . . . . . . . . . . . . . . . . . . Actions | -11 -10 -9 -8 -7 -6 -6 -6 -6 -5 -5 -5 -5 -4 -4 -4 -4 -3 -3 -2 -1 --------- Run | Yrd Mat Mat Mat Fac Fac Low Low Zio Pro Fac Ext Cet Fac Upp Upp Zhi Pro Res Res Acc Total 10465 | 55 612 1012 494 368 556 277 173 1185 422 778 1128 53 250 279 401 168 206 651 386 1011 Wait 791 | . 197 141 88 26 153 . . 16 . . 76 . 18 12 . . . 4 59 1 Move 9066 | 43 384 663 328 310 380 276 173 1157 422 751 976 53 227 257 398 156 206 623 305 978 Hop 18 | . . . 1 . . . . . . . 15 . . . . . . . 1 1 Pick Up 103 | 7 7 31 7 12 8 . . 3 . 3 . . 1 2 1 5 . 8 4 4 Fast Attach 17 | . 1 7 . 1 . . . 2 . 3 . . . . . . . 1 2 . Attach 83 | 5 1 13 15 4 2 1 . 2 . 2 1 . 3 6 1 4 . 8 1 14 Detach 17 | . . 1 6 1 . . . . . . 1 . . 1 1 1 . 1 1 3 Swap 26 | . 1 9 7 2 4 . . 1 . 1 . . . . . 1 . . . . Drop 66 | . 3 15 9 11 6 . . 4 . 6 . . . 1 . 1 . 2 5 3 Fire 187 | . 18 130 31 . . . . . . 3 . . . . . . . . . 5 Melee 39 | . . . 2 1 3 . . . . 9 9 . 1 . . . . 4 8 2 Ram . | . . . . . . . . . . . . . . . . . . . . . Kick . | . . . . . . . . . . . . . . . . . . . . . Crush 2 | . . 2 . . . . . . . . . . . . . . . . . . Escape Stasis 50 | . . . . . . . . . . . 50 . . . . . . . . . Rewire . | . . . . . . . . . . . . . . . . . . . . . Trap . | . . . . . . . . . . . . . . . . . . . . . Miscellaneous . | . . . . . . . . . . . . . . . . . . . . . Route ------- -11/Scrapyard -10/Materials (discovered 2 exits: *Mat x2) -9/Materials (discovered 3 exits: *Mat x2 / [*Min]) -8/Materials -7/Factory -6/Factory -6/Lower Caves -6/Lower Caves -6/Zion -5/Proximity Caves -5/Factory (discovered 5 exits: Fac x4 / *Ext) -5/Extension (discovered 2 exits: *Fac / *Cet) -5/Cetus -4/Factory -4/Upper Caves -4/Upper Caves -4/Zhirov -3/Proximity Caves -3/Research -2/Research (discovered 5 exits: *Acc x3 / Tes x2) -1/Access (discovered 1 exit: Sur) History --------- Turn | Location | Event 14 | -11/Scrapyard | Discovered new exit (range 15) 71 | -11/Scrapyard | Entered Materials 208 | -10/Materials | Discovered new exit (range 14) 305 | -10/Materials | Build established: Mutant 671 | -10/Materials | Derelicts attacked the area 894 | -10/Materials | Discovered new exit (range 4) 946 | -10/Materials | Entered another Materials area 946 | -9/Materials | Evolved 2 slots: Propulsion x2 1538 | -9/Materials | Discovered new exit (range 3) 1990 | -9/Materials | Build established: Scavenger-Mutant 1999 | -9/Materials | Discovered new exit (range 12) 2401 | -9/Materials | Discovered new exit (range 15) 2477 | -9/Materials | Core integrity fell below 50% 2627 | -9/Materials | Entered another Materials area 2627 | -8/Materials | Evolved 2 slots: Utility x2 2831 | -8/Materials | Destroyed 7 combat bots 2976 | -8/Materials | Discovered new exit (range 10) 2981 | -8/Materials | Entered Factory 2981 | -7/Factory | Evolved 2 slots: Propulsion x2 3022 | -7/Factory | Fabricated Imp. Propulsion Shielding (x2) 3046 | -7/Factory | Found Prototype Launcher 3047 | -7/Factory | Identified Rocket Array 3048 | -7/Factory | Found Rocket Array 3094 | -7/Factory | Discovered new exit (range 16) 3103 | -7/Factory | Entered another Factory area 3103 | -6/Factory | Evolved 2 slots: Utility x2 3184 | -6/Factory | Discovered new exit (range 15) 3187 | -6/Factory | Identified exit to Lower Caves 3331 | -6/Factory | Build established: Hacker-Sprinter 3353 | -6/Factory | Fabricated Hacking Suite (x1) 3364 | -6/Factory | Entered Lower Caves 3372 | -6/Lower Caves | Learned Factory stockpile data 3385 | -6/Lower Caves | Attracted the attention of an 0b10 outpost 3419 | -6/Lower Caves | Discovered new exit (range 11) 3421 | -6/Lower Caves | Identified exit to Lower Caves 3422 | -6/Lower Caves | Entered another Lower Caves area 3455 | -6/Lower Caves | Discovered new exit (range 9) 3457 | -6/Lower Caves | Identified exit to Zion 3457 | -6/Lower Caves | Entered Zion 3469 | -6/Zion | Discovered new exit (range 9) 3470 | -6/Zion | Identified exit to Proximity Caves 3474 | -6/Zion | Given A8's code to call for help 3511 | -6/Zion | Learned Factory trap positions 3618 | -6/Zion | Found Prototype Device 3618 | -6/Zion | Identified Mobile Refinery Mk. CCLXVII 3668 | -6/Zion | Met Imprinter 3703 | -6/Zion | Visited the Megawrench Repair Shop 3703 | -6/Zion | Megawrench repaired 8 parts 3724 | -6/Zion | Entered Proximity Caves 3726 | -5/Proximity Caves | Spotter reported a threat 3727 | -5/Proximity Caves | Spotter reported a threat 3739 | -5/Proximity Caves | Learned Factory garrison access intel 3788 | -5/Proximity Caves | Spotter reported a threat 3810 | -5/Proximity Caves | Discovered new exit (range 16) 3813 | -5/Proximity Caves | Identified exit to Factory 3813 | -5/Proximity Caves | Entered Factory 3813 | -5/Factory | Evolved 2 slots: Utility x2 3814 | -5/Factory | Loaded intel: 89 trap records 3816 | -5/Factory | Loaded intel: 4 garrison access locations 4030 | -5/Factory | Identified exit to Factory 4043 | -5/Factory | Garrison activated, responded to threat 4056 | -5/Factory | Discovered new exit (range 13) 4059 | -5/Factory | Identified exit to Extension 4060 | -5/Factory | Entered Extension 4064 | -5/Extension | Destroyed 8 combat bots 4083 | -5/Extension | Spotted B-75 Beast 4175 | -5/Extension | Identified exit to Cetus 4184 | -5/Extension | Rescued a captive Derelict 4371 | -5/Extension | Spotted B-75 Beast 4386 | -5/Extension | Rescued a captive Derelict 4388 | -5/Extension | Rescued a captive Derelict 4393 | -5/Extension | Rescued a captive Derelict 4432 | -5/Extension | Rescued a captive Derelict 4434 | -5/Extension | Rescued a captive Derelict 4435 | -5/Extension | Rescued a captive Derelict 4503 | -5/Extension | Discovered exit to Factory (range 10) 4505 | -5/Extension | Entered Cetus 4510 | -5/Cetus | Spotted Cetus Guard 4510 | -5/Cetus | Spotted Cetus Guard 4510 | -5/Cetus | Spotted Cetus Guard 4517 | -5/Cetus | Discovered exit to Factory (range 15) 4521 | -5/Cetus | Entered Factory 4521 | -4/Factory | Evolved 2 slots: Utility x2 4598 | -4/Factory | Discovered new exit (range 10) 4602 | -4/Factory | Identified exit to Upper Caves 4612 | -4/Factory | Entered Upper Caves 4612 | -4/Upper Caves | Spotted B-86 Titan 4695 | -4/Upper Caves | Learned 8 Research zone layouts 4695 | -4/Upper Caves | Discovered new exit (range 13) 4701 | -4/Upper Caves | Identified exit to Upper Caves 4702 | -4/Upper Caves | Entered another Upper Caves area 4715 | -4/Upper Caves | Learned Research emergency access door positions 4768 | -4/Upper Caves | Learned location of Quarantine (-3) 4785 | -4/Upper Caves | Attracted the attention of an 0b10 outpost 4798 | -4/Upper Caves | Discovered new exit (range 13) 4802 | -4/Upper Caves | Identified exit to Zhirov 4808 | -4/Upper Caves | Entered Zhirov 4808 | -4/Zhirov | Discovered new exit (range 3) 4813 | -4/Zhirov | Met Zhirov 4821 | -4/Zhirov | Learned location of Testing (-2) 4821 | -4/Zhirov | Learned location of Command (-1) 4823 | -4/Zhirov | Zhirov requested help retrieving the SGEMP Prototype 4828 | -4/Zhirov | Found Alien Artifact 4829 | -4/Zhirov | Identified Integrated Dissipator 4829 | -4/Zhirov | Installed Integrated Dissipator, increased core heat dissipation (+20) 4833 | -4/Zhirov | Found Alien Artifact 4860 | -4/Zhirov | Identified exit to Proximity Caves 4861 | -4/Zhirov | Entered Proximity Caves 4867 | -3/Proximity Caves | Acquired the password to a Derelict Tinkerer's latest research 4897 | -3/Proximity Caves | Attracted the attention of an 0b10 checkpoint 4899 | -3/Proximity Caves | Spotter reported a threat 4900 | -3/Proximity Caves | Spotter reported a threat 4912 | -3/Proximity Caves | Discovered new exit (range 5) 4914 | -3/Proximity Caves | Identified exit to Research 4915 | -3/Proximity Caves | Entered Research 4915 | -3/Research | Evolved 2 slots: Power x1, Utility x1 4916 | -3/Research | Identified exit to Research 4981 | -3/Research | Fabricated Imp. Utility Shielding? 4999 | -3/Research | Lost 3 parts (2n1u) 5106 | -3/Research | Identified Transdimensional Reconstructor 5106 | -3/Research | Warped through subspace 5133 | -3/Research | Entered another Research area 5133 | -2/Research | Evolved 2 slots: Utility x2 5197 | -2/Research | Identified exit to Testing 5197 | -2/Research | Identified exit to Access 5277 | -2/Research | Spotted B-90 Cyclops 5319 | -2/Research | Entered Access 5319 | -1/Access | Evolved 2 slots: Utility x1, Weapon x1 5474 | -1/Access | Spotted B-99 Colossus 5519 | -1/Access | Lost 5 parts (1p2n2w) 5631 | -1/Access | Identified exit to Surface 5655 | -1/Access | Core integrity fell below 50% 5702 | -1/Access | Core integrity fell below 20% 5733 | -1/Access | Destroyed by S-43 Plague with Heavy Machine Gun Last Messages --------------- 05654_ Knocked back. 05656_ Dropped Imp. Utility Shielding. 05659_ Lrn. Sensor Array destroyed. 05661_ Knocked back. 05668_ Penetrated by Slug. 05668_ Adv. Hacking Suite destroyed. 05670_ Connecting with Terminal... 05690_ Hacking Suite destroyed. 05692_ Connecting with Terminal... 05692_ ALERT: Suspicious activity at Terminal A001. Dispatching Investigation squad. 05695_ Terminal disabled. 05696_ Adv. Transmission Jammer destroyed. 05697_ Rocket Array destroyed. 05705_ Imp. Signal Interpreter destroyed. 05719_ ALERT: Potential suspicious activity detected, Programmers report to Access Zone 7K. 05722_ Door malfunctions. 05732_ ZDH&UZYCBUOCDV1 MJV/A 9N&T, Map ----- +----------------------------------------------------+ | ?????????????????????????????????????????????????? | | ?????????????????????????????????????????????????? | | ?????????????????????????????????????????????????? | | ?????????????????????????????????????????????????? | | ?????????????????????????????????????????????????? | | ?????????????????????????????????????????????????? | | ?????????????????????????????????????????????????? | | ?????????????????????????????????????????????????? | | ?????????????????????????????????????????????????? | | ?????????????????????????????????????????????????? | | ?????????????????????????????????????????????????? | | ?????????????????????????????????????????????????? | | ?????????????????????????????????????????????????? | | ?????????????????????????????????????????????????? | | ?????????????????????????????????????????????????? | | ?????????????????????????????????????????????????? | | ?????????????????????????????????????????????????? | | ????????######+#####?????????????????????????????? | | ????????? #?????????????????????????????? | | ?????????? #?????????????????????????????? | | ??????????? #?????????????????????????????? | | ????????????"""" #+##+################?????????? | | ???????????""""" s# ?????????? | | ?????????? """"" /s ????????? | | ??????+ """"" #s ????????? | | ??????# """"" # ss @ ????????? | | ??????# """"" ####+##########???????????????? | | ??????# #?? ????????????????????????? | | ??????# #?? ????????????????????????? | | ??????# #? ???????????????????????? | | ??????############+#? ???????????????????????? | | ?????????????????# ## ??????????????????????? | | ?????????????????# ## " ??????????????????????? | | ?????????????????# ## """ ?????????????????????? | | ?????????????????# ## """ ?????????????????????? | | ?????????????????# ## " ????????????????????? | | ?????????????????# #####???##????????????????????? | | ?????????????????# #?????????????????????????????? | | ?????????????????# #?????????????????????????????? | | ?????????????????# ###############???????????????? | | ?????????????????+ + """"" #???????????????? | | ?????????????????# # ""T"" #???????????????? | | ?????????????????# # #???????????????? | | ?????????????????+ # ?????????????????? | | ?????????????????# # ???????????